bitfinex/quotes_SOLUSD_20240827
["timestamp","ask_amount","ask_price","bid_price","bid_amount"]
[1724722455733,0.50820453,159.08,159.04,15.7183]
[1724722456253,6.2861,159.08,159.04,15.7183]
[1724722456559,0.50820453,159.08,159.04,22.006]
[1724722457140,0.50820453,159.08,159.04,15.7183]
[1724722457359,6.2865,159.07,159.02,6.2884]
[1724722459860,6.79440453,159.08,159.02,6.2884]
[1724722461469,6.79440453,159.08,159.03,6.288]
[1724722462249,31.98619301,159.09,159.04,6.2877]
[1724722462449,22.25,159.09,159.04,6.2877]
[1724722463371,15.9643,159.09,159.02,15.7203]
[1724722463553,15.9643,159.09,159.05,6.2873]
[1724722463958,15.9643,159.09,159.06,6.2868]
[1724722464148,53.5349,159.12,159.06,6.2868]
[1724722464349,20.0,159.11,159.06,6.2868]
[1724722464644,54.04310453,159.12,159.06,6.2868]
[1724722464645,53.5349,159.12,159.07,6.2862]
[1724722466661,53.5349,159.12,159.07,7.54333922]
[1724722467355,53.5349,159.12,159.07,6.2862]
[1724722468371,54.04310453,159.12,159.07,6.2862]
[1724722468574,47.75820453,159.12,159.06,15.7166]
[1724722468769,6.2858,159.09,159.04,6.2874]
[1724722471161,6.2854,159.1,159.05,6.2872]
[1724722471563,16.02109301,159.11,159.06,6.2868]
[1724722473478,0.50820453,159.1,159.06,6.2868]
[1724722475361,16.52929754,159.11,159.06,6.2868]
[1724722475679,6.79310453,159.11,159.06,6.2868]
[1724722475859,47.25,159.12,159.07,6.2864]
[1724722476785,53.5345,159.12,159.07,6.2864]
[1724722478479,47.25,159.12,159.08,7.54304466]
[1724722479483,47.25,159.12,159.08,6.286]
[1724722479783,47.25,159.12,159.08,7.5430278]
[1724722480468,47.25,159.12,159.08,16.9723278]
[1724722480673,47.25,159.12,159.1,6.2853]
[1724722481081,47.25,159.12,159.09,6.2856]
[1724722482588,47.25,159.12,159.09,7.54253938]
[1724722482981,47.25,159.12,159.09,6.2856]
[1724722484393,47.25,159.12,159.1,1.25693966]
[1724722484795,47.25,159.12,159.11,6.2849]
[1724722486685,47.25,159.12,159.1,15.7125]
[1724722486878,47.25,159.12,159.06,15.7164]
[1724722487274,47.25,159.12,159.09,6.2857]
[1724722492177,47.25,159.12,159.1,6.2853]
[1724722501886,47.25,159.12,159.11,6.2849]
[1724722505186,47.25,159.12,159.11,17.2779216]
[1724722506212,47.25,159.12,159.1,15.7125]
[1724722506504,47.25,159.12,159.1,21.9977]
[1724722506715,47.25,159.12,159.11,6.2849]
[1724722507085,47.25,159.12,159.06,15.7165]
[1724722507307,47.25,159.12,159.08,6.286]
[1724722511218,47.25,159.12,159.09,15.714]
[1724722511393,47.25,159.12,159.11,6.2849]
[1724722514305,47.25,159.12,159.1,6.2851]
[1724722517096,47.25,159.12,159.11,6.2849]
[1724722518914,47.25,159.12,159.11,16.02109301]
[1724722519224,47.25,159.12,159.11,17.59485514]
[1724722519514,47.25,159.12,159.11,32.80835514]
[1724722519715,6.3954,159.24,159.19,6.2817]
[1724722522732,6.3954,159.24,159.2,6.2813]
[1724722526318,6.3954,159.24,159.21,15.7022]
[1724722527308,16.4224,159.25,159.21,15.7022]
[1724722527508,16.4224,159.25,159.22,6.2804]
[1724722528899,0.50820453,159.24,159.21,15.7022]
[1724722529919,0.50820453,159.24,159.2,6.281]
[1724722530122,23.21010453,159.25,159.2,6.281]
[1724722531003,22.7019,159.25,159.2,6.281]
[1724722531912,16.4224,159.25,159.21,7.53679855]
[1724722532512,16.4224,159.25,159.21,6.2806]
[1724722533332,0.765696,159.26,159.22,6.2804]
[1724722533623,0.765696,159.26,159.22,7.53637847]
[1724722534205,0.765696,159.26,159.22,6.2804]
[1724722536322,0.765696,159.26,159.23,7.53613957]
[1724722536524,0.765696,159.26,159.24,1.25577318]
[1724722536722,0.765696,159.26,159.24,7.53557318]
[1724722537411,0.765696,159.26,159.24,6.2798]
[1724722538311,0.765696,159.26,159.25,1.25577338]
[1724722538736,0.765696,159.26,159.18,15.7479]
[1724722539024,6.2802,159.23,159.19,15.7043]
[1724722540127,9.73619301,159.24,159.2,6.2813]
[1724722540327,15.6416,159.25,159.21,7.53696815]
[1724722540535,0.765696,159.26,159.22,6.2805]
[1724722540828,0.765696,159.26,159.23,1.2558901]
[1724722541721,0.765696,159.26,159.23,6.2802]
[1724722542333,0.765696,159.26,159.24,15.6991]
[1724722543017,0.765696,159.26,159.22,6.2805]
[1724722545334,0.765696,159.26,159.2,15.7025]
[1724722545530,0.765696,159.26,159.21,6.2809]
[1724722546717,0.765696,159.26,159.22,1.25590121]
[1724722547319,0.765696,159.26,159.21,6.2809]
[1724722547531,0.765696,159.26,159.22,6.2804]
[1724722548243,0.765696,159.26,159.23,51.2798]
[1724722548941,0.765696,159.26,159.23,6.2798]
[1724722550240,0.765696,159.26,159.24,6.2798]
[1724722550744,0.765696,159.26,159.23,6.2802]
[1724722553356,9.73619301,159.25,159.14,56.82120229]
[1724722553647,9.73619301,159.23,159.14,47.165]
[1724722553853,6.2806,159.22,159.17,6.2824]
[1724722554053,6.2806,159.22,159.16,15.7072]
[1724722554342,9.73619301,159.21,159.14,6.2834]
[1724722555738,9.73619301,159.19,159.14,6.2834]
[1724722555942,15.6416,159.23,159.15,16.96467985]
[1724722556137,20.0,159.22,159.15,15.7082]
[1724722556550,29.73619301,159.22,159.15,15.7082]
[1724722557228,36.01679301,159.22,159.17,6.2825]
[1724722558551,9.73619301,159.18,159.11,15.7116]
[1724722558754,9.73619301,159.18,159.13,6.2841]
[1724722559133,9.73619301,159.18,159.1,15.7479]
[1724722559343,31.82389301,159.16,159.1,6.2853]
[1724722559543,31.82389301,159.16,159.11,6.2849]
[1724722560045,22.0877,159.16,159.11,6.2849]
[1724722560239,6.2833,159.15,159.09,6.2853]
[1724722560440,6.2833,159.15,159.07,15.7159]
[1724722560759,6.79150453,159.15,159.07,15.7159]
[1724722561131,6.79150453,159.15,159.09,6.2857]
[1724722561328,6.2841,159.13,159.08,1.57384455]
[1724722561535,6.2841,159.13,159.07,22.0022]
[1724722561759,24.81739437,159.14,159.08,6.2861]
[1724722562050,24.30918984,159.14,159.08,6.2861]
[1724722562642,30.59298984,159.14,159.08,6.2861]
[1724722562837,6.2838,159.14,159.09,1.25695432]
[1724722563931,6.2838,159.14,159.08,6.2861]
[1724722565258,6.2838,159.14,159.09,6.2857]
[1724722565434,6.79200453,159.14,159.07,22.0021]
[1724722565633,6.2838,159.14,159.07,22.0021]
[1724722565846,6.2838,159.14,159.08,7.54305516]
[1724722566449,6.2838,159.14,159.08,6.2861]
[1724722567339,6.2838,159.14,159.09,1.25692221]
[1724722568335,6.2838,159.14,159.09,7.54262221]
[1724722568529,6.2838,159.14,159.1,1.25690572]
[1724722570373,6.2336,159.15,159.1,1.25690962]
[1724722570665,6.2336,159.15,159.09,15.7134]
[1724722571663,6.2336,159.15,159.11,6.2849]
[1724722574265,15.8047,159.16,159.12,1.2567619]
[1724722574757,6.285,159.11,159.05,22.0042]
[1724722574960,24.81739437,159.14,159.05,15.7173]
[1724722575164,24.81739437,159.14,159.08,6.2861]
[1724722575361,6.2842,159.13,159.07,6.2865]
[1724722575548,6.2842,159.13,159.05,15.7173]
[1724722575549,0.50820453,159.12,159.05,15.7173]
[1724722575743,44.81739437,159.12,159.05,15.7173]
[1724722575943,15.4646,159.11,159.05,15.7173]
[1724722576149,0.50820453,159.1,159.05,15.7173]
[1724722576759,6.79360453,159.1,159.05,15.7173]
[1724722576964,6.2858,159.09,159.03,6.2878]
[1724722578390,6.2858,159.09,159.04,6.2877]
[1724722578666,6.0587,159.13,159.05,1.25722044]
[1724722578867,6.0587,159.13,159.05,70.56641028]
[1724722579160,6.0587,159.13,159.05,69.30918984]
[1724722579361,6.0587,159.13,159.05,45.0]
[1724722579565,6.0587,159.13,159.04,45.0]
[1724722579767,6.0587,159.13,159.08,6.286]
[1724722580269,15.78536684,159.13,159.08,6.286]
[1724722580470,9.72666684,159.09,158.99,8.40049091]
[1724722580658,9.72666684,159.07,159.02,6.2883]
[1724722580972,9.72666684,159.05,159.0,6.2889]
[1724722581278,9.72666684,159.03,159.0,6.2889]
[1724722582065,0.50820453,159.05,159.0,6.2889]
[1724722582268,6.79560453,159.05,158.99,22.0131]
[1724722583143,6.2879,159.04,158.99,15.7235]
[1724722583654,30.4044224,159.06,158.99,15.7235]
[1724722583655,6.79630453,159.03,158.99,15.7235]
[1724722584052,6.2881,159.03,158.99,15.7235]
[1724722585257,0.50820453,159.02,158.99,15.7235]
[1724722585448,6.2877,159.05,158.99,15.7235]
[1724722586685,6.2877,159.05,158.99,23.2708743]
[1724722586984,6.2877,159.05,158.99,22.013]
[1724722587285,0.50820453,159.04,158.99,22.013]
[1724722588788,6.2877,159.05,158.99,22.013]
[1724722589151,6.2877,159.05,159.0,1.25779731]
[1724722589389,6.0587,159.06,159.0,1.25779731]
[1724722589555,6.0587,159.06,158.99,15.7235]
[1724722590268,6.0587,159.06,159.01,6.2888]
[1724722591459,6.0587,159.06,159.02,16.97873537]
[1724722591685,6.0587,159.06,159.03,1.25742285]
[1724722591998,6.564,159.11,159.08,6.2861]
[1724722592278,6.564,159.11,159.06,22.0029]
[1724722592486,12.8489,159.11,159.06,22.0029]
[1724722592867,6.564,159.11,159.07,6.2865]
[1724722593954,6.564,159.11,159.08,6.2861]
[1724722594264,6.2841,159.13,159.08,6.2861]
[1724722594675,20.0,159.12,159.08,6.2861]
[1724722594860,20.0,159.12,159.09,6.2857]
[1724722595485,20.0,159.13,159.08,6.2861]
[1724722595871,26.2841,159.13,159.08,6.2861]
[1724722596071,26.2841,159.13,159.08,7.54313433]
[1724722596273,20.0,159.13,159.1,6.2853]
[1724722596487,15.8663,159.14,159.1,6.2853]
[1724722597201,22.65830453,159.14,159.09,15.7143]
[1724722597364,6.2842,159.13,159.09,15.7143]
[1724722597559,0.50820453,159.12,159.09,15.7143]
[1724722597865,6.2842,159.13,159.09,15.7143]
[1724722598068,0.50820453,159.12,159.06,15.7172]
[1724722598467,6.79280453,159.12,159.07,6.2864]
[1724722599000,6.2846,159.12,159.07,6.2864]
[1724722599466,6.2846,159.12,159.07,7.54353701]
[1724722600397,6.2846,159.12,159.07,6.2864]
[1724722601400,6.79320453,159.11,159.06,15.7172]
[1724722601702,6.2847,159.12,159.07,6.2864]
[1724722605526,15.8663,159.14,159.09,15.7143]
[1724722605816,0.50820453,159.13,159.1,6.2852]
[1724722605981,0.50820453,159.13,159.09,15.7143]
[1724722606790,15.8663,159.14,159.09,15.7143]
[1724722607394,16.37450453,159.14,159.09,15.7143]
[1724722607809,22.65820453,159.14,159.09,21.9999]
[1724722608328,15.8663,159.14,159.1,6.2851]
[1724722608888,22.65830453,159.14,159.09,15.7143]
[1724722609419,16.37450453,159.14,159.09,15.7143]
[1724722609622,16.37450453,159.14,159.07,6.2865]
[1724722609790,6.2848,159.12,159.07,6.2865]
[1724722609990,0.50820453,159.11,159.07,6.2865]
[1724722610410,6.79330453,159.11,159.06,6.2867]
[1724722610619,6.2851,159.11,159.06,6.2867]
[1724722611129,6.79360453,159.1,159.05,15.7174]
[1724722611496,6.2854,159.1,159.05,15.7174]
[1724722611990,6.2854,159.1,159.05,22.0044]
[1724722613009,6.2849,159.11,159.05,15.7174]
[1724722613212,6.2849,159.11,159.06,7.54403754]
[1724722613927,6.2846,159.12,159.07,6.2865]
[1724722616425,0.50820453,159.11,159.07,6.2865]
[1724722616600,6.2846,159.12,159.07,6.2865]
[1724722619117,15.8663,159.14,159.08,16.97225641]
[1724722619322,15.8663,159.14,159.09,1.25696952]
[1724722619508,15.8663,159.14,159.08,15.7151]
[1724722620721,15.8663,159.14,159.1,6.2853]
[1724722621097,16.37450453,159.14,159.1,6.2853]
[1724722621304,0.50820453,159.15,159.11,15.7121]
[1724722621523,20.0,159.15,159.11,15.7121]
[1724722621833,20.0,159.15,159.04,31.4377]
[1724722621834,26.79190453,159.15,159.1,6.285]
[1724722622021,0.50820453,159.14,159.1,6.285]
[1724722622503,6.79190453,159.15,159.1,6.285]
[1724722625632,6.2837,159.15,159.1,6.285]
[1724722626419,6.2837,159.15,159.08,15.7153]
[1724722626420,6.2842,159.13,159.08,22.0014]
[1724722626633,0.50820453,159.12,159.08,15.7153]
[1724722627004,6.79280453,159.12,159.08,15.7153]
[1724722629762,6.2849,159.11,159.06,6.2869]
[1724722629934,6.79360453,159.1,159.05,22.0051]
[1724722630625,15.4766,159.12,159.07,6.2862]
[1724722630626,21.7613,159.12,159.07,6.2862]
[1724722630818,0.50820453,159.11,159.07,6.2862]
[1724722633639,6.79310453,159.11,159.06,6.2868]
[1724722634328,0.50820453,159.1,159.06,6.2868]
[1724722634535,0.50820453,159.1,159.05,22.0054]
[1724722634536,6.79360453,159.1,159.05,22.0054]
[1724722636436,6.2854,159.1,159.05,22.0054]
[1724722636640,9.73063756,159.09,159.01,15.7213]
[1724722636819,0.50820453,159.08,159.02,1.57451985]
[1724722637026,6.79440453,159.08,159.03,6.288]
[1724722637341,16.01743756,159.07,159.02,6.2884]
[1724722637647,0.50820453,159.06,159.02,6.2884]
[1724722638623,16.52564209,159.07,159.02,6.2884]
[1724722639232,9.73063756,159.05,158.98,15.725]
[1724722639434,0.50820453,159.04,158.98,15.725]
[1724722639647,26.79620453,159.04,158.98,22.0149]
[1724722641850,6.2881,159.03,158.98,22.0149]
[1724722642148,6.79670453,159.02,158.98,15.725]
[1724722642453,6.2885,159.02,158.98,15.725]
[1724722642666,0.50820453,159.01,158.98,15.725]
[1724722644338,50.63407044,159.04,158.98,15.725]
[1724722645359,6.79630453,159.03,158.98,15.725]
[1724722650435,50.63377044,159.04,158.98,15.725]
[1724722650631,26.2877,159.04,158.98,22.0148]
[1724722651236,6.79640453,159.03,158.98,22.0148]
[1724722651438,6.2882,159.03,158.98,22.0148]
[1724722653364,20.0,159.04,158.98,22.0148]
[1724722653751,20.0,159.03,158.98,22.0148]
[1724722653956,20.0,159.05,158.98,22.0148]
[1724722654744,6.79600453,159.04,158.98,22.0148]
[1724722654950,20.0,159.03,158.98,22.0148]
[1724722656065,0.50820453,159.02,158.98,22.0148]
[1724722656272,20.0,159.03,158.98,22.0148]
[1724722656958,0.50820453,159.02,158.98,22.0148]
[1724722657156,20.0,159.03,158.98,22.0148]
[1724722659785,0.50820453,159.02,158.98,22.0148]
[1724722660971,20.0,159.03,158.98,22.0148]
[1724722661972,26.2881,159.03,158.98,22.0148]
[1724722662281,20.0,159.03,158.98,22.0148]
[1724722662875,20.50820453,159.03,158.98,22.0148]
[1724722663455,26.79640453,159.03,158.98,22.0148]
[1724722665666,20.0,159.03,158.99,6.2896]
[1724722665875,22.7642,159.11,159.0,10.99717597]
[1724722666058,6.2858,159.09,159.0,10.99717597]
[1724722666264,22.7642,159.11,159.02,25.45966165]
[1724722666465,29.0495,159.11,159.05,6.2872]
[1724722668265,30.24746618,159.1,159.02,15.7204]
[1724722668674,9.73926165,159.08,159.02,15.7204]
[1724722668877,0.50820453,159.07,159.02,15.7204]
[1724722669085,20.50820453,159.07,159.02,15.7204]
[1724722669382,9.73926165,159.06,159.02,15.7204]
[1724722670088,26.2867,159.07,159.02,15.7204]
[1724722670259,20.0,159.07,159.02,22.0087]
[1724722670465,20.0,159.08,159.02,23.26622974]
[1724722670664,0.50820453,159.07,159.02,22.0087]
[1724722671268,36.02536165,159.08,159.03,6.288]
[1724722671783,29.73926165,159.08,159.03,6.288]
[1724722672084,20.0,159.08,159.03,6.288]
[1724722673685,20.50820453,159.08,159.03,6.288]
[1724722674468,26.79430453,159.08,159.03,6.288]
[1724722674779,0.50820453,159.07,159.03,6.288]
[1724722675680,36.53356618,159.08,159.03,6.288]
[1724722675890,0.50820453,159.07,159.03,6.288]
[1724722676061,36.02536165,159.08,159.03,6.288]
[1724722676384,20.0,159.08,159.03,6.288]
[1724722676763,20.0,159.08,159.04,6.2876]
[1724722677376,0.50820453,159.07,159.04,6.2876]
[1724722677858,20.50820453,159.08,159.04,6.2876]
[1724722682595,21.4435,159.15,159.05,1.25741242]
[1724722682888,9.73926165,159.14,159.05,1.25741242]
[1724722683295,0.50820453,159.13,159.04,15.7296]
[1724722683688,6.2846,159.12,159.06,15.7165]
[1724722683985,0.50820453,159.11,159.06,15.7165]
[1724722684496,20.50820453,159.11,159.06,15.7165]
[1724722684692,20.50820453,159.11,159.06,22.0033]
[1724722685195,20.0,159.11,159.06,22.0033]
[1724722686085,20.50820453,159.11,159.06,22.0033]
[1724722686290,0.50820453,159.1,159.06,22.0033]
[1724722686673,20.50820453,159.11,159.06,22.0033]
[1724722687898,20.0,159.11,159.06,22.0033]
[1724722691681,6.2842,159.13,159.08,6.286]
[1724722693589,0.50820453,159.12,159.07,6.2864]
[1724722694185,0.50820453,159.12,159.08,6.286]
[1724722694895,6.2842,159.13,159.08,6.286]
[1724722696192,6.2842,159.13,159.07,7.54358166]
[1724722696381,0.50820453,159.12,159.07,6.2864]
[1724722697294,6.2842,159.13,159.07,7.54358074]
[1724722698090,6.2842,159.13,159.07,6.2864]
[1724722698399,0.50820453,159.12,159.07,6.2864]
[1724722700027,6.2863,159.08,159.03,15.7202]
[1724722700183,0.50820453,159.07,159.03,15.7202]
[1724722701122,0.50820453,159.07,159.0,38.0249]
[1724722701318,9.73926165,159.05,159.0,15.7231]
[1724722701518,0.50820453,159.04,159.0,15.7231]
[1724722703118,6.79590453,159.04,159.0,15.7231]
[1724722703516,6.79590453,159.04,158.98,6.29]
[1724722704519,6.2881,159.03,158.98,6.29]
[1724722704835,0.50820453,159.02,158.97,6.2904]
[1724722705823,6.2881,159.03,158.98,6.2899]
[1724722706124,6.2876,159.05,158.99,7.54752903]
[1724722706519,20.0,159.04,158.99,7.54752903]
[1724722707633,20.0,159.04,159.01,6.2888]
[1724722707805,6.79520453,159.06,159.01,6.2888]
[1724722708005,6.2874,159.05,159.0,6.2892]
[1724722708204,0.50820453,159.04,158.99,22.0135]
[1724722709327,6.2874,159.05,158.99,22.0135]
[1724722712242,6.79590453,159.04,158.99,22.0135]
[1724722712404,6.2881,159.03,158.99,15.7239]
[1724722712701,0.50820453,159.02,158.99,15.7239]
[1724722713344,6.2881,159.03,158.99,15.7239]
[1724722714623,10.24746618,159.02,158.96,15.727]
[1724722714913,6.79710453,159.01,158.96,22.0177]
[1724722716443,6.2894,159.0,158.93,15.7299]
[1724722716740,0.50820453,159.01,158.93,25.46916165]
[1724722717454,6.2889,159.01,158.95,6.2909]
[1724722717851,0.50820453,159.0,158.95,6.2909]
[1724722718949,9.73926165,158.96,158.89,15.7332]
[1724722719146,0.50820453,158.95,158.89,15.7332]
[1724722719361,16.03096165,158.94,158.89,15.7332]
[1724722719541,26.80030453,158.93,158.86,28.7346996]
[1724722719883,0.50820453,158.92,158.87,6.2943]
[1724722720226,20.0,158.93,158.88,6.294]
[1724722720537,20.0,158.93,158.89,15.7341]
[1724722720733,20.50820453,158.95,158.89,15.7341]
[1724722721931,6.2917,158.94,158.89,22.0277]
[1724722722132,20.50820453,158.93,158.89,22.0277]
[1724722722637,0.50820453,158.92,158.89,22.0277]
[1724722722942,6.79990453,158.94,158.89,15.7341]
[1724722723149,20.0,158.93,158.89,15.7341]
[1724722723343,0.50820453,158.92,158.89,15.7341]
[1724722725254,0.50820453,158.92,158.9,6.2932]
[1724722725447,0.50820453,158.93,158.89,15.7341]
[1724722725963,10.24746618,158.93,158.89,15.7341]
[1724722726336,16.53956618,158.93,158.88,6.2936]
[1724722726536,20.0,158.92,158.88,6.2936]
[1724722726757,0.50820453,158.91,158.88,6.2936]
[1724722726932,0.50820453,158.91,158.86,22.0872996]
[1724722729152,10.24746618,158.91,158.86,0.0558996]
[1724722729462,16.54026618,158.91,158.86,6.3506996]
[1724722730350,9.73926165,158.89,158.86,0.0558996]
[1724722730553,0.50820453,158.88,158.86,0.0558996]
[1724722730862,9.73926165,158.87,158.86,0.0558996]
[1724722731172,36.03366165,158.87,158.86,0.0558996]
[1724722731666,29.73926165,158.87,158.86,0.0558996]
[1724722732751,20.0,158.87,158.86,0.0558996]
[1724722736562,22.0646,158.91,158.86,0.0558996]
[1724722736563,16.0333,158.91,158.86,0.0558996]
[1724722736771,6.2924,158.92,158.87,6.2944]
[1724722737282,0.50820453,158.91,158.87,6.2944]
[1724722737454,6.2924,158.92,158.86,0.0558996]
[1724722737455,6.2918,158.94,158.88,6.2938]
[1724722737654,16.53966618,158.93,158.87,6.2944]
[1724722737960,6.80070453,158.92,158.87,6.2944]
[1724722738677,20.0,158.91,158.86,6.3505996]
[1724722739176,20.50820453,158.91,158.86,6.3505996]
[1724722739470,26.80100453,158.91,158.86,0.0558996]
[1724722739849,20.50820453,158.91,158.86,6.3505996]
[1724722741874,20.50820453,158.91,158.86,0.0558996]
[1724722742077,20.0,158.92,158.88,6.294]
[1724722742401,20.0,158.92,158.87,6.2943]
[1724722742563,0.50820453,158.91,158.87,6.2943]
[1724722742976,26.2924,158.92,158.87,6.2943]
[1724722743169,0.50820453,158.91,158.87,6.2943]
[1724722743375,26.2924,158.92,158.87,6.2943]
[1724722744173,0.50820453,158.91,158.89,6.2936]
[1724722744359,22.2997,158.95,158.89,6.2936]
[1724722744559,38.33056165,158.95,158.89,6.2936]
[1724722744761,6.80000453,158.94,158.89,6.2936]
[1724722744967,6.80000453,158.94,158.88,6.2939]
[1724722745154,0.50820453,158.94,158.87,15.7353]
[1724722745369,9.73926165,158.93,158.87,22.0295]
[1724722745560,20.50820453,158.92,158.87,22.0295]
[1724722745967,20.0,158.92,158.87,22.0295]
[1724722746286,0.50820453,158.91,158.87,22.0295]
[1724722749365,0.50820453,158.91,158.86,0.0558996]
[1724722749366,6.80110453,158.91,158.86,6.3505996]
[1724722749567,20.0,158.9,158.86,6.3505996]
[1724722749769,0.50820453,158.89,158.86,0.0558996]
[1724722749965,10.24746618,158.89,158.86,0.0558996]
[1724722751759,16.54106618,158.89,158.86,0.0558996]
[1724722752272,26.2941,158.88,158.86,0.0558996]
[1724722752474,0.50820453,158.87,158.86,0.0558996]
[1724722752887,26.2941,158.88,158.86,0.0558996]
[1724722753081,0.50820453,158.87,158.86,0.0558996]
[1724722755160,26.2941,158.88,158.86,0.0558996]
[1724722755562,20.0,158.88,158.86,0.0558996]
[1724722755767,20.50820453,158.89,158.86,0.0558996]
[1724722755983,20.50820453,158.89,158.86,6.3506996]
[1724722756173,20.50820453,158.9,158.86,6.3506996]
[1724722756771,6.2917,158.94,158.88,6.2939]
[1724722757187,6.2917,158.94,158.89,6.2936]
[1724722757365,16.1857,158.95,158.9,6.2932]
[1724722757564,0.50820453,158.95,158.91,6.2927]
[1724722757778,6.79950453,158.95,158.9,6.2932]
[1724722758093,6.79950453,158.95,158.88,15.7341]
[1724722758094,6.2918,158.94,158.89,6.2936]
[1724722758268,0.50820453,158.93,158.88,15.7341]
[1724722758673,20.50820453,158.93,158.88,22.0281]
[1724722758889,0.50820453,158.92,158.88,22.0281]
[1724722759493,20.0,158.93,158.89,6.2936]
[1724722759792,20.0,158.94,158.89,6.2936]
[1724722759973,6.2912,158.95,158.9,6.2932]
[1724722760490,0.50820453,158.94,158.9,6.2932]
[1724722761499,20.50820453,158.94,158.89,6.2936]
[1724722762291,20.0,158.94,158.89,6.2936]
[1724722763073,20.50820453,158.94,158.89,6.2936]
[1724722763991,20.50820453,158.94,158.9,6.2931]
[1724722764197,20.50820453,158.93,158.9,6.2931]
[1724722764377,0.50820453,158.93,158.9,6.2931]
[1724722765281,0.50820453,158.94,158.9,6.2931]
[1724722769405,6.79990453,158.94,158.89,6.2936]
[1724722769600,20.0,158.93,158.89,6.2936]
[1724722769809,0.50820453,158.92,158.89,6.2936]
[1724722771099,20.0,158.93,158.89,6.2936]
[1724722771314,20.50820453,158.94,158.9,6.2932]
[1724722772888,20.50820453,158.94,158.89,6.2935]
[1724722775500,20.0,158.94,158.9,6.2931]
[1724722778519,20.0,158.95,158.9,6.2931]
[1724722779521,381.3,158.98,158.9,6.2931]
[1724722779522,6.2904,158.98,158.91,10.99778138]
[1724722780694,0.50820453,158.97,158.93,6.2919]
[1724722780919,20.50820453,158.97,158.93,6.2919]
[1724722782321,20.50820453,158.97,158.92,6.2924]
[1724722788413,20.0,158.97,158.92,6.2924]
[1724722790120,0.50820453,158.96,158.92,6.2924]
[1724722791721,20.0,158.97,158.92,6.2924]
[1724722791722,20.50820453,158.97,158.92,6.2924]
[1724722797420,26.79880453,158.97,158.92,6.2924]
[1724722801124,20.50820453,158.97,158.9,22.0253]
[1724722801429,20.50820453,158.97,158.9,15.7324]
[1724722801607,6.2913,158.95,158.9,22.0254]
[1724722801809,0.50820453,158.94,158.9,22.0254]
[1724722802722,6.2913,158.95,158.9,22.0254]
[1724722803331,0.50820453,158.94,158.9,22.0254]
[1724722803632,0.50820453,158.94,158.87,26.20696165]
[1724722803633,6.2923,158.93,158.88,6.294]
[1724722803844,6.80070453,158.92,158.87,15.7359]
[1724722804151,6.80070453,158.92,158.87,22.0302]
[1724722806011,6.2929,158.91,158.86,0.0558996]
[1724722806221,0.50820453,158.9,158.86,0.0558996]
[1724722806534,6.2929,158.91,158.86,0.0558996]
[1724722807429,0.50820453,158.92,158.86,15.7921996]
[1724722808227,0.50820453,158.92,158.87,6.2941]
[1724722809837,6.80070453,158.92,158.87,6.2941]
[1724722810141,20.0,158.91,158.86,22.0869996]
[1724722810348,0.50820453,158.9,158.86,15.7921996]
[1724722810514,6.80150453,158.9,158.86,15.7921996]
[1724722810716,0.50820453,158.89,158.86,15.7921996]
[1724722811121,6.80180453,158.89,158.86,0.0558996]
[1724722811320,20.0,158.88,158.86,0.0558996]
[1724722812216,0.50820453,158.87,158.86,0.0558996]
[1724722814823,26.2941,158.88,158.86,0.0558996]
[1724722815341,0.50820453,158.87,158.86,0.0558996]
[1724722815835,0.50820453,158.88,158.86,0.0558996]
[1724722816036,20.50820453,158.88,158.86,0.0558996]
[1724722819851,26.80230453,158.88,158.86,0.0558996]
[1724722823347,61.54186618,158.87,158.86,0.0558996]
[1724722823849,71.80260453,158.87,158.86,0.0558996]
[1724722824142,26.80260453,158.87,158.86,0.0558996]
[1724722824534,71.80260453,158.87,158.86,0.0558996]
[1724722827348,31.2317,158.86,158.75,15.7479]
[1724722827653,6.2976,158.79,158.73,6.2999]